bitfinex/quotes_SOLUSD_20230112
["timestamp","ask_amount","ask_price","bid_price","bid_amount"]
[1673510864055,1.92,16.156,16.147,175.800727]
[1673510865504,0.96,16.156,16.147,175.800727]
[1673510866465,1.92,16.156,16.147,175.800727]
[1673510866686,0.96,16.155,16.147,175.800727]
[1673510866874,0.96,16.154,16.147,175.800727]
[1673510867085,0.96,16.153,16.147,175.800727]
[1673510867308,0.96,16.152,16.147,175.800727]
[1673510868239,26.94573,16.155,16.147,175.800727]
[1673510868454,20.0,16.155,16.147,175.800727]
[1673510869520,26.94573,16.155,16.147,175.800727]
[1673510870049,46.09069728,16.155,16.147,175.800727]
[1673510870246,1.92,16.154,16.147,175.800727]
[1673510871198,26.94573,16.155,16.147,175.800727]
[1673510872359,0.96,16.154,16.147,175.800727]
[1673510872755,26.94573,16.155,16.147,175.800727]
[1673510873623,46.09069728,16.155,16.147,175.800727]
[1673510873935,20.0,16.153,16.147,175.800727]
[1673510874139,0.96,16.152,16.147,175.800727]
[1673510874543,1.92,16.152,16.147,175.800727]
[1673510874876,20.0,16.153,16.147,175.800727]
[1673510875088,0.96,16.152,16.147,175.800727]
[1673510875299,20.0,16.153,16.147,175.800727]
[1673510880248,1.92,16.152,16.147,175.800727]
[1673510882543,1.92,16.152,16.147,106.620727]
[1673510882874,1.92,16.152,16.138,114.4672464]
[1673510882875,38.28993456,16.151,16.138,114.4672464]
[1673510883092,171.4,16.15,16.138,114.4672464]
[1673510883281,6.94573,16.149,16.138,114.4672464]
[1673510883605,20.0,16.147,16.138,114.4672464]
[1673510883798,72.32573,16.146,16.138,114.4672464]
[1673510884013,91.47069728,16.146,16.138,114.4672464]
[1673510884232,19.14496728,16.145,16.138,77.2311464]
[1673510884456,72.33573,16.144,16.138,77.2311464]
[1673510884653,26.94573,16.143,16.138,77.2311464]
[1673510884871,46.09069728,16.143,16.138,77.2311464]
[1673510885081,20.0,16.147,16.138,77.2311464]
[1673510886774,1.92,16.146,16.138,73.1160464]
[1673510886952,20.0,16.144,16.138,73.1160464]
[1673510887289,25.86573,16.143,16.138,73.1160464]
[1673510887486,20.0,16.142,16.138,73.1160464]
[1673510887702,0.96,16.141,16.138,73.1160464]
[1673510887910,0.96,16.14,16.138,73.1160464]
[1673510888236,20.0,16.142,16.138,31.8390464]
[1673510888550,1.92,16.141,16.138,31.8390464]
[1673510889812,20.0,16.142,16.138,31.8390464]
[1673510890004,1.66222705,16.141,16.138,31.8390464]
[1673510890960,1.66222705,16.141,16.138,0.0090464]
[1673510891170,8.60795705,16.141,16.138,0.0090464]
[1673510891392,18.92,16.14,16.138,0.0090464]
[1673510891715,1.68200519,16.139,16.138,0.0090464]
[1673510891894,3.60200519,16.139,16.138,0.0090464]
[1673510892105,1.92,16.139,16.138,0.0090464]
[1673510892317,2.55512883,16.139,16.138,0.0090464]
[1673510893707,1.92,16.139,16.138,0.0090464]
[1673510893915,20.0,16.138,16.129,24.792024]
[1673510894129,1.92,16.137,16.128,116.6166]
[1673510894862,1.92,16.137,16.122,109.1491]
[1673510895070,21.16544226,16.136,16.134,0.0025415]
[1673510895279,20.96,16.135,16.122,131.4507465]
[1673510895494,2.02047498,16.129,16.122,131.4507465]
[1673510895705,17.44,16.13,16.122,131.4507465]
[1673510896234,2.02047498,16.129,16.122,131.4507465]
[1673510896546,17.44,16.13,16.122,130.9507465]
[1673510897161,2.02047498,16.129,16.122,130.9507465]
[1673510897366,17.44,16.13,16.122,24.799105]
[1673510897582,2.02047498,16.129,16.122,24.799105]
[1673510898022,17.44,16.13,16.122,24.799105]
[1673510898638,2.02047498,16.133,16.122,24.799105]
[1673510900123,2.02047498,16.133,16.122,25.109245]
[1673510901365,0.96,16.132,16.122,25.109245]
[1673510901575,2.02047498,16.133,16.122,25.109245]
[1673510905379,17.32,16.13,16.122,0.31014]
[1673510905578,2.02047498,16.129,16.122,0.31014]
[1673510906644,2.02047498,16.133,16.122,0.31014]
[1673510906837,2.02047498,16.135,16.122,1.27014]
[1673510907055,37.29,16.14,16.123,0.96]
[1673510907253,107.09,16.14,16.122,1.27014]
[1673510907463,20.0,16.137,16.122,0.31014]
[1673510907996,1.53826205,16.136,16.122,0.31014]
[1673510908207,0.96,16.135,16.122,0.31014]
[1673510909049,1.53826205,16.136,16.122,1.27014]
[1673510909256,1.53826205,16.136,16.123,0.96]
[1673510909571,20.0,16.139,16.123,0.96]
[1673510910415,20.0,16.139,16.123,20.96]
[1673510910614,20.0,16.139,16.124,20.96]
[1673510910830,20.0,16.139,16.125,0.96]
[1673510911053,20.0,16.139,16.126,0.96]
[1673510911372,20.0,16.139,16.127,0.96]
[1673510911779,0.96,16.138,16.124,20.0]
[1673510911987,0.96,16.138,16.122,20.31014]
[1673510912207,0.96,16.138,16.123,1.92]
[1673510912617,2.5394391,16.138,16.123,1.92]
[1673510912827,0.96,16.138,16.123,1.92]
[1673510913453,17.29,16.13,16.122,0.31014]
[1673510915370,1.56320278,16.129,16.122,0.31014]
[1673510915566,17.29,16.13,16.122,0.31014]
[1673510922604,1.58551531,16.129,16.122,0.31014]
[1673510922818,17.29,16.13,16.122,0.31014]
[1673510923345,1.5429564,16.129,16.122,0.31014]
[1673510923551,17.29,16.13,16.122,0.31014]
[1673510924291,20.0,16.129,16.122,0.31014]
[1673510924922,1.67875234,16.128,16.122,0.31014]
[1673510925137,20.0,16.126,16.122,0.31014]
[1673510925343,1.67875234,16.125,16.122,0.31014]
[1673510925556,20.0,16.126,16.122,0.31014]
[1673510925770,20.0,16.126,16.122,0.00014]
[1673510925771,1.64022815,16.125,16.122,0.00014]
[1673510925982,48.16022815,16.125,16.122,0.00014]
[1673510926198,1.64022815,16.125,16.122,0.00014]
[1673510926412,20.0,16.126,16.122,0.00014]
[1673510926620,1.60098923,16.125,16.122,0.00014]
[1673510927338,20.0,16.126,16.122,0.00014]
[1673510927549,1.54563891,16.125,16.122,0.00014]
[1673510928509,20.0,16.127,16.122,0.00014]
[1673510930822,20.0,16.13,16.122,0.00014]
[1673510931033,179.7614,16.137,16.122,0.00014]
[1673510931226,46.49,16.135,16.122,0.00014]
[1673510931442,66.49,16.137,16.122,0.00014]
[1673510931653,46.49,16.135,16.122,0.00014]
[1673510931867,46.49,16.137,16.122,0.30692795]
[1673510932073,37.29,16.14,16.124,20.0]
[1673510932282,37.29,16.14,16.125,46.16]
[1673510932714,37.29,16.14,16.126,20.0]
[1673510932924,37.29,16.14,16.127,1.92]
[1673510933324,1.92,16.139,16.125,44.24]
[1673510933544,6.94573,16.138,16.122,0.00014]
[1673510933759,64.45,16.137,16.122,0.00014]
[1673510933971,178.4967,16.137,16.122,0.00014]
[1673510934186,39.14496728,16.136,16.122,0.00014]
[1673510934398,48.41,16.135,16.122,0.00014]
[1673510934707,20.0,16.134,16.122,0.00014]
[1673510936588,39.14496728,16.134,16.122,0.00014]
[1673510936803,20.0,16.132,16.122,0.00014]
[1673510937013,46.5,16.131,16.122,0.00014]
[1673510937226,20.0,16.13,16.122,0.00014]
[1673510937863,37.49,16.13,16.122,0.00014]
[1673510938484,46.51,16.129,16.122,0.00014]
[1673510938715,37.49,16.13,16.122,0.00014]
[1673510942504,20.0,16.13,16.122,0.00014]
[1673510945765,37.49,16.13,16.122,0.00014]
[1673510947226,46.51,16.129,16.122,0.00014]
[1673510947971,20.0,16.128,16.122,0.00014]
[1673510949346,68.43,16.127,16.122,0.00014]
[1673510949746,20.0,16.126,16.122,0.00014]
[1673510951743,20.0,16.128,16.122,0.00014]
[1673510956906,20.0,16.128,16.114,19.50014]
[1673510957115,20.0,16.128,16.115,1.92]
[1673510957937,20.0,16.128,16.114,19.50014]
[1673510959206,48.43,16.127,16.114,19.50014]
[1673510959741,20.0,16.126,16.114,19.50014]
[1673510960879,20.0,16.126,16.113,24.818634]
[1673510962367,20.0,16.126,16.114,1.92]
[1673510963817,20.0,16.126,16.114,0.96]
[1673510964051,20.0,16.126,16.113,24.818634]
[1673510964243,20.0,16.126,16.11,210.4495]
[1673510964244,20.0,16.124,16.11,210.4495]
[1673510964453,13.12,16.12,16.11,210.4495]
[1673510965193,20.0,16.128,16.111,64.37]
[1673510965605,85.65,16.13,16.111,64.37]
[1673510965927,109.607,16.129,16.112,133.9907]
[1673510966140,109.607,16.129,16.113,63.7]
[1673510966344,109.607,16.129,16.114,0.96]
[1673510966673,20.0,16.128,16.115,44.67]
[1673510966878,20.0,16.128,16.114,46.4]
[1673510967088,20.0,16.128,16.115,20.0]
[1673510967825,20.0,16.128,16.114,20.0]
[1673510968655,19.14496728,16.127,16.115,20.96]
[1673510969491,19.14496728,16.127,16.116,20.0]
[1673510969825,19.14496728,16.127,16.116,621.2120819]
[1673510970227,167.47375561,16.129,16.116,621.2120819]
[1673510970438,20.0,16.128,16.116,621.2120819]
[1673510970878,19.14496728,16.127,16.116,621.2120819]
[1673510971193,19.14496728,16.127,16.117,20.0]
[1673510971609,19.14496728,16.127,16.117,601.2120819]
[1673510971818,19.14496728,16.127,16.118,20.0]
[1673510972012,19.14496728,16.127,16.117,601.2120819]
[1673510972957,129.607,16.129,16.117,601.2120819]
[1673510973167,128.75196728,16.129,16.117,601.2120819]
[1673510973604,20.0,16.128,16.117,601.2120819]
[1673510974239,39.14496728,16.128,16.117,601.2120819]
[1673510974661,85.65496728,16.128,16.117,601.2120819]
[1673510975289,19.14496728,16.128,16.117,601.2120819]
[1673510975597,109.607,16.129,16.117,601.2120819]
[1673510976237,20.0,16.128,16.117,601.2120819]
[1673510977606,109.607,16.129,16.117,601.2120819]
[1673510980543,20.0,16.127,16.117,331.1214819]
[1673510980743,20.0,16.125,16.117,45.2993819]
[1673510980956,54.42573,16.124,16.117,45.2993819]
[1673510981270,20.96,16.123,16.117,45.2993819]
[1673510981480,20.0,16.121,16.117,45.2993819]
[1673510982331,0.96,16.12,16.117,45.2993819]
[1673510982539,20.0,16.121,16.117,0.0093819]
[1673510982758,1.92,16.12,16.117,0.0093819]
[1673510982949,0.96,16.12,16.117,0.0093819]
[1673510983492,0.96,16.119,16.117,0.0093819]
[1673510984104,46.09069728,16.121,16.117,0.0093819]
[1673510984337,20.0,16.121,16.117,0.0093819]
[1673510985999,20.0,16.123,16.117,0.0093819]
[1673510986212,20.0,16.124,16.117,0.0093819]
[1673510987164,86.51,16.128,16.117,0.0093819]
[1673510987381,40.0,16.128,16.117,0.0093819]
[1673510988427,112.13,16.13,16.117,0.0093819]
[1673510988428,13.16,16.13,16.117,0.0093819]
[1673510988636,13.16,16.13,16.118,3.007]
[1673510988955,13.16,16.13,16.119,114.6357]
[1673510989163,13.16,16.13,16.12,6.568]
[1673510989597,13.16,16.13,16.119,112.7157]
[1673510990216,13.16,16.13,16.12,0.96]
[1673510990533,13.16,16.13,16.12,21.92]
[1673510990971,13.16,16.13,16.12,31.113]
[1673510992628,85.6,16.14,16.121,20.0]
[1673510992844,85.6,16.14,16.122,12.81]
[1673510993055,65.6,16.14,16.123,20.0]
[1673510993265,65.6,16.14,16.124,14.98]
[1673510993481,65.6,16.14,16.126,20.0]
[1673510993688,65.6,16.14,16.127,16.41]
[1673510994013,65.6,16.14,16.128,1.92]
[1673510994208,65.6,16.14,16.128,227.6817]
[1673510994421,65.6,16.14,16.129,1.92]
[1673510995575,65.6,16.14,16.129,21.92]
[1673510995994,13.23,16.14,16.129,21.92]
[1673510996215,13.23,16.14,16.129,1.92]
[1673510997361,13.23,16.14,16.129,18.92]
[1673510997789,13.1,16.14,16.129,17.96]
[1673510998006,13.1,16.14,16.129,17.0]
[1673510998221,13.1,16.14,16.13,0.96]
[1673510998447,13.1,16.14,16.129,37.0]
[1673510998874,13.1,16.14,16.13,1.92]
[1673510999302,13.1,16.14,16.13,21.92]
[1673510999824,13.1,16.14,16.128,227.6817]
[1673511001408,13.1,16.14,16.129,21.92]
[1673511002133,13.1,16.14,16.129,51.04]
[1673511002546,13.1,16.14,16.129,31.04]
[1673511002753,13.1,16.14,16.13,17.0]
[1673511003269,13.1,16.14,16.13,37.0]
[1673511003792,17.47,16.14,16.131,1.92]
[1673511004430,66.46,16.146,16.131,53.16]
[1673511004638,37.76671398,16.147,16.131,53.16]
[1673511005262,37.76671398,16.147,16.132,20.0]
[1673511005480,37.76671398,16.147,16.133,21.92]
[1673511005934,46.45,16.148,16.133,21.92]
[1673511006115,66.45,16.149,16.134,20.0]
[1673511006330,66.45,16.149,16.135,135.792]
[1673511006531,66.45,16.149,16.135,134.832]
[1673511006739,66.45,16.149,16.135,133.872]
[1673511006952,46.45,16.149,16.136,20.0]
[1673511007163,46.45,16.149,16.137,1.92]
[1673511007368,46.45,16.149,16.136,20.0]
[1673511007589,46.45,16.149,16.138,20.0]
[1673511007802,46.45,16.149,16.137,116.7516]
[1673511008435,17.57,16.15,16.138,21.92]
[1673511009599,17.46,16.15,16.138,69.76973889]
[1673511010211,46.44,16.153,16.138,69.76973889]
[1673511010422,69.96,16.16,16.138,69.76973889]
[1673511010423,17.46,16.15,16.139,20.0]
[1673511010637,17.46,16.15,16.14,1.92]
[1673511010955,17.46,16.15,16.14,49.76973889]
[1673511011674,17.46,16.15,16.142,20.0]
[1673511011887,17.46,16.15,16.143,1.92]
[1673511013589,17.45,16.16,16.144,32.13]
[1673511013908,17.45,16.16,16.145,21.92]
[1673511014220,17.45,16.16,16.147,20.0]
[1673511014429,17.45,16.16,16.148,153.067]
[1673511014746,20.0,16.169,16.148,153.067]
[1673511014747,20.0,16.169,16.149,20.0]
[1673511015057,20.0,16.169,16.15,54.82]
[1673511015277,20.0,16.169,16.151,20.96]
[1673511015594,20.0,16.169,16.152,55.01]
[1673511016005,17.46,16.16,16.148,151.727]
[1673511016317,17.46,16.16,16.148,117.887]
[1673511017356,17.46,16.16,16.149,0.96]
[1673511017765,17.42,16.16,16.149,0.96]
[1673511018407,17.42,16.16,16.15,0.96]
[1673511018618,17.42,16.16,16.151,0.96]
[1673511018956,17.42,16.16,16.152,0.96]
[1673511020821,46.41,16.165,16.153,0.96]
[1673511021027,66.4,16.168,16.154,20.0]
[1673511021244,66.4,16.168,16.155,139.2081]
[1673511021977,46.4,16.168,16.155,139.2081]
[1673511022303,66.39,16.169,16.155,139.2081]
[1673511022619,46.39,16.169,16.157,20.0]
[1673511022829,17.37,16.17,16.158,40.07]
[1673511023147,17.37,16.17,16.158,1.92]
[1673511024196,17.37,16.17,16.159,41.83]
[1673511024408,17.37,16.17,16.16,1.92]
[1673511024611,17.37,16.17,16.16,0.96]
[1673511024831,17.37,16.17,16.159,0.96]
[1673511025254,17.37,16.17,16.157,44.46]
[1673511025461,87.16,16.17,16.157,44.46]
[1673511025669,87.16,16.17,16.156,158.319]
[1673511025880,17.38,16.17,16.156,158.319]
[1673511026095,21.92,16.169,16.156,111.939]
[1673511026300,20.0,16.167,16.156,111.939]
[1673511026834,46.4,16.168,16.156,111.939]
[1673511027769,87.06,16.17,16.157,20.0]
[1673511028103,87.06,16.17,16.157,20.96]
[1673511028723,87.06,16.17,16.157,0.96]
[1673511028936,87.06,16.17,16.157,20.96]
[1673511031255,87.06,16.17,16.158,0.96]
[1673511032392,46.39,16.169,16.158,0.96]
[1673511032611,87.06,16.17,16.158,0.96]
[1673511034282,1.92,16.169,16.157,20.0]
[1673511034491,46.4,16.168,16.157,20.0]
[1673511034716,21.92,16.167,16.157,20.0]
[1673511035035,20.96,16.167,16.157,20.0]
[1673511035243,0.96,16.166,16.157,20.0]
[1673511035451,47.36,16.166,16.157,20.0]
[1673511035667,20.0,16.165,16.157,20.0]
[1673511039014,47.36,16.166,16.157,20.0]
[1673511039226,46.4,16.168,16.157,20.0]
[1673511039532,46.4,16.168,16.158,0.96]
[1673511039772,133.45,16.17,16.158,21.92]
[1673511040410,87.06,16.17,16.159,0.96]
[1673511040826,87.06,16.17,16.16,0.96]
[1673511041039,17.38,16.17,16.16,0.96]
[1673511041464,17.38,16.17,16.16,20.96]
[1673511041668,17.38,16.17,16.161,0.96]
[1673511041894,17.38,16.17,16.162,0.96]
[1673511046823,17.38,16.17,16.163,0.96]
[1673511047040,17.38,16.17,16.161,0.96]
[1673511048923,17.38,16.17,16.157,46.43]
[1673511049137,20.0,16.169,16.156,111.939]
[1673511049338,0.96,16.168,16.156,111.939]
[1673511049557,67.35,16.169,16.156,111.939]
[1673511049763,66.39,16.169,16.157,21.92]
[1673511050606,46.39,16.169,16.157,21.92]
[1673511051026,86.95,16.17,16.157,21.92]
[1673511051248,17.36,16.17,16.157,21.92]
[1673511053229,86.96,16.17,16.157,0.96]
[1673511053447,46.39,16.169,16.157,20.0]
[1673511053657,1.92,16.168,16.157,20.0]
[1673511053869,46.4,16.167,16.157,20.0]
[1673511054080,21.92,16.168,16.157,20.0]
[1673511055027,21.92,16.168,16.155,117.2881]
[1673511055352,85.54496728,16.167,16.148,118.5093]
[1673511055566,17.33,16.16,16.148,118.5093]
[1673511056907,1.92,16.159,16.148,118.5093]
[1673511057343,48.34,16.159,16.148,118.5093]
[1673511058714,1.92,16.159,16.148,118.5093]
[1673511058907,86.81,16.16,16.148,118.5093]
[1673511059666,20.0,16.159,16.148,118.5093]
[1673511060386,66.42,16.159,16.148,118.5093]
[1673511062697,46.42,16.159,16.148,118.5093]
[1673511062903,86.81,16.16,16.148,118.5093]
[1673511063121,20.0,16.159,16.148,118.5093]
[1673511066481,86.81,16.16,16.148,118.5093]
[1673511067223,86.81,16.16,16.149,1.92]
[1673511067434,17.39,16.16,16.149,14.8]
[1673511067642,17.39,16.16,16.15,20.0]
[1673511067842,17.39,16.16,16.151,16.09]
[1673511068054,17.39,16.16,16.151,1.92]
[1673511068264,17.39,16.16,16.151,17.46]
[1673511069106,17.39,16.16,16.151,15.54]
[1673511069429,17.39,16.16,16.149,20.03]
[1673511069649,17.39,16.16,16.15,20.0]
[1673511070897,17.39,16.16,16.151,1.92]
[1673511073538,17.39,16.16,16.151,0.96]
[1673511073735,17.39,16.16,16.148,118.5093]
[1673511074063,17.39,16.16,16.149,21.92]
[1673511077008,17.39,16.16,16.149,35.49]
[1673511077220,17.39,16.16,16.149,1.92]
[1673511077739,17.42,16.16,16.149,1.92]
[1673511077941,17.42,16.16,16.149,21.92]
[1673511078375,17.42,16.16,16.149,1.92]
[1673511080047,17.42,16.16,16.149,21.92]
[1673511081009,17.42,16.16,16.149,1.92]
[1673511081922,17.42,16.16,16.143,133.00681176]
[1673511082149,1.92,16.159,16.147,20.0]
[1673511082364,46.43,16.158,16.147,20.0]
[1673511082568,1.92,16.157,16.147,20.0]
[1673511082767,21.92,16.157,16.147,20.0]
[1673511084154,21.92,16.157,16.141,46.47]
[1673511084353,20.0,16.149,16.139,117.1753]
[1673511084564,66.45,16.149,16.139,117.1753]
[1673511086023,20.0,16.149,16.139,117.1753]
[1673511086878,87.31,16.15,16.139,117.1753]
[1673511088357,87.31,16.15,16.14,1.92]
[1673511090034,87.31,16.15,16.139,117.1753]
[1673511090255,20.0,16.149,16.139,117.1753]
[1673511090565,66.45,16.149,16.139,117.1753]
[1673511090751,1.92,16.148,16.139,117.1753]
[1673511091066,66.45,16.149,16.139,117.1753]
[1673511091609,46.45,16.149,16.139,117.1753]
[1673511092873,87.31,16.15,16.139,117.1753]
[1673511094237,20.0,16.149,16.139,117.1753]
[1673511094453,20.0,16.149,16.134,19.42]
[1673511094454,67.41,16.149,16.134,19.42]
[1673511094664,67.41,16.149,16.133,118.6373]
[1673511094665,0.96,16.148,16.133,118.6373]
[1673511097160,0.96,16.148,16.134,20.0]
[1673511097811,87.31,16.15,16.138,0.96]
[1673511098218,87.31,16.15,16.138,20.96]
[1673511099370,87.31,16.15,16.138,20.0]
[1673511099587,87.31,16.15,16.135,2.545]
[1673511100014,1.92,16.149,16.135,22.545]
[1673511100327,20.0,16.148,16.135,20.0]
[1673511100538,1.92,16.147,16.135,20.0]
[1673511101788,1.92,16.147,16.135,21.864]
[1673511102004,20.0,16.148,16.135,21.864]
[1673511102422,1.59489018,16.146,16.135,1.864]
[1673511102760,2.09284203,16.144,16.127,114.094]
[1673511102971,87.31,16.14,16.127,114.094]
[1673511103181,22.18485524,16.139,16.127,114.094]
[1673511103924,2.18485524,16.139,16.127,114.094]
[1673511106754,2.18485524,16.139,16.129,21.92]
[1673511109494,17.47,16.14,16.129,21.92]
[1673511109696,66.44,16.152,16.13,20.0]
[1673511109697,37.3,16.15,16.13,20.0]
[1673511109909,17.34,16.15,16.131,1.92]
[1673511110949,17.34,16.15,16.132,6.59]
[1673511111160,17.34,16.15,16.133,41.92]
[1673511111368,17.34,16.15,16.134,10.87]
[1673511111594,17.34,16.15,16.135,136.9092]
[1673511111807,17.34,16.15,16.136,12.43]
[1673511112014,17.34,16.15,16.137,21.92]
[1673511112224,17.34,16.15,16.138,13.03]
[1673511112431,17.34,16.15,16.139,1.92]
[1673511113485,17.34,16.15,16.14,18.87]
[1673511113889,17.34,16.15,16.138,20.93]
[1673511114097,17.34,16.15,16.139,1.92]
[1673511114327,17.34,16.15,16.14,21.89]
[1673511114548,87.22,16.15,16.141,0.96]
[1673511114867,17.34,16.15,16.142,0.96]
[1673511115074,17.34,16.15,16.143,0.96]
[1673511115281,17.34,16.15,16.144,26.56]
[1673511115602,39.14496728,16.157,16.144,26.56]
[1673511115809,19.14496728,16.157,16.145,0.96]
[1673511116005,20.0,16.156,16.146,0.96]
[1673511116427,20.0,16.156,16.147,0.96]
[1673511117261,20.0,16.156,16.146,0.96]
[1673511117482,20.0,16.156,16.142,27.54]
[1673511117681,20.0,16.156,16.143,1.92]
[1673511118532,20.0,16.155,16.142,27.54]
[1673511118748,17.46,16.15,16.14,35.38]
[1673511119805,17.46,16.15,16.141,1.92]
[1673511120004,17.46,16.15,16.141,21.92]
[1673511120220,116.44,16.16,16.142,59.78]
[1673511120540,19.14496728,16.159,16.143,20.96]
[1673511120735,19.14496728,16.159,16.144,62.22]
[1673511120945,17.55,16.16,16.145,20.96]
[1673511121159,17.55,16.16,16.146,63.14]
[1673511121368,17.55,16.16,16.147,20.96]
[1673511121578,17.55,16.16,16.148,43.0]
[1673511121789,17.55,16.16,16.149,1.92]
[1673511121999,17.55,16.16,16.15,43.57]
[1673511122214,17.55,16.16,16.151,1.92]
[1673511125269,17.42,16.16,16.152,46.44]
[1673511125477,20.0,16.166,16.153,1.92]
[1673511125680,46.4,16.168,16.154,20.0]
[1673511125895,85.53496728,16.169,16.155,135.3393]
[1673511126107,85.53496728,16.169,16.156,20.0]
[1673511126626,85.53496728,16.169,16.157,20.0]
[1673511126829,85.53496728,16.169,16.152,20.0]
[1673511126830,17.0,16.168,16.133,20.0]
[1673511127045,87.08,16.16,16.142,116.7057]
[1673511127252,66.42,16.159,16.142,116.7057]
[1673511127467,17.0,16.158,16.142,116.7057]
[1673511127669,67.39,16.157,16.137,178.3292]
[1673511127879,87.12,16.15,16.137,111.8392]
[1673511128110,48.37,16.149,16.137,111.8392]
[1673511128325,121.28738646,16.149,16.134,114.2695]
[1673511128516,89.79693127,16.148,16.134,114.2695]
[1673511128726,48.38,16.147,16.134,114.2695]
[1673511128938,17.32,16.14,16.134,114.2695]
[1673511131250,17.32,16.14,16.135,20.0]
[1673511131470,20.0,16.146,16.135,20.0]
[1673511132310,21.92,16.145,16.13,46.51]
[1673511132513,87.31,16.14,16.125,46.52]
[1673511132719,87.31,16.14,16.129,115.8107]
[1673511132937,21.92,16.139,16.129,115.8107]
[1673511133466,87.31,16.14,16.129,115.8107]
[1673511133891,130.81,16.14,16.13,20.0]
[1673511134084,130.66,16.14,16.13,20.0]
[1673511134293,130.66,16.14,16.129,115.8107]
[1673511134826,21.92,16.139,16.129,115.8107]
[1673511135036,68.4,16.139,16.129,115.8107]
[1673511136402,19.14496728,16.138,16.128,116.3043]
[1673511136615,21.92,16.137,16.128,116.3043]
[1673511137038,41.06496728,16.137,16.128,116.3043]
[1673511137366,41.06496728,16.137,16.123,108.583]
[1673511137578,26.21,16.13,16.123,108.583]
[1673511137768,26.23,16.13,16.123,108.583]
[1673511138187,20.0,16.139,16.123,108.583]
[1673511138188,46.48,16.138,16.124,33.71]
[1673511138423,20.0,16.139,16.124,33.71]
[1673511138615,20.0,16.139,16.125,21.92]
[1673511138816,20.0,16.139,16.126,54.75]
[1673511139029,131.7,16.14,16.127,21.92]
[1673511139445,20.0,16.139,16.127,21.92]
[1673511139892,20.0,16.139,16.127,20.0]
[1673511140096,39.14496728,16.139,16.125,20.0]
[1673511140294,39.14496728,16.139,16.126,21.92]
[1673511140500,39.14496728,16.139,16.127,20.0]
[1673511141361,0.96,16.138,16.127,20.0]
[1673511141569,0.96,16.137,16.123,108.583]
[1673511141774,26.12,16.13,16.123,108.583]
[1673511142925,130.77,16.13,16.115,31.82]
[1673511143250,20.0,16.128,16.114,51.17]
[1673511143446,26.12,16.12,16.115,116.2725]
[1673511144301,131.06,16.12,16.112,29.42]